fUSD/lending_fUSD_20240720
["ID","MTS","AMOUNT","RATE_DAILY","PERIOD"]
[332736864,1721494266155,-152.75641938,0.0003562,7]
[332736865,1721494266168,-152.75641938,0.0003562,7]
[332736866,1721494266181,-152.75641938,0.0003562,7]
[332736867,1721494266194,-152.75641938,0.0003562,7]
[332736868,1721494266206,-152.75641938,0.0003562,7]
[332736869,1721494266215,-152.75641938,0.0003562,7]
[332736870,1721494266225,-152.75641938,0.0003562,7]
[332736871,1721494266234,-154.11510352,0.0003562,7]
[332736872,1721494266244,-154.11510352,0.0003562,7]
[332736873,1721494266256,-154.11510352,0.0003562,7]
[332736874,1721494266266,-154.11510352,0.0003562,7]
[332736875,1721494266275,-154.11510352,0.0003562,7]
[332736876,1721494266284,-154.11510352,0.0003562,7]
[332736877,1721494266294,-154.11510352,0.0003562,7]
[332736878,1721494266303,-154.11510352,0.0003562,7]
[332736879,1721494266313,-154.11510352,0.0003562,7]
[332736880,1721494266322,-154.11510352,0.0003562,7]
[332736881,1721494266332,-154.11510352,0.0003562,7]
[332736882,1721494266341,-154.11510352,0.0003562,7]
[332736883,1721494266351,-154.11510352,0.0003562,7]
[332736884,1721494266360,-154.11510352,0.0003562,7]
[332736885,1721494266369,-154.11510352,0.0003562,7]
[332736886,1721494266379,-154.61,0.0003562,7]
[332736887,1721494266389,-493.24333127,0.0003562,7]
[332736888,1721494266398,-493.24333127,0.0003562,7]
[332736889,1721494266409,-493.24333127,0.0003562,7]
[332736890,1721494266933,-493.24333127,0.0003562,7]
[332736891,1721494266954,-493.24333127,0.0003562,7]
[332736892,1721494266985,-493.24333127,0.0003562,7]
[332736893,1721494267012,-493.24333127,0.0003562,7]
[332736894,1721494267044,-493.24333127,0.0003562,7]
[332736895,1721494267054,-493.24333127,0.0003562,7]
[332736896,1721494267064,-493.24333127,0.0003562,7]
[332736897,1721494267073,-493.24333127,0.0003562,7]
[332736898,1721494267083,-493.24333127,0.0003562,7]
[332736899,1721494267093,-493.24333127,0.0003562,7]
[332736900,1721494267102,-493.24333127,0.0003562,7]
[332736901,1721494267112,-493.24333127,0.0003562,7]
[332736902,1721494267121,-493.24333127,0.0003562,7]
[332736903,1721494267131,-157.439852,0.0003562,7]
[332736904,1721494267140,-157.439852,0.0003562,7]
[332736905,1721494267149,-157.439852,0.0003562,7]
[332736906,1721494267158,-157.439852,0.0003562,7]
[332736907,1721494267168,-157.439852,0.0003562,7]
[332736908,1721494267177,-157.439852,0.0003562,7]
[332736909,1721494267186,-157.439852,0.0003562,7]
[332736910,1721494267196,-157.439852,0.0003562,7]
[332736911,1721494267206,-157.439852,0.0003562,7]
[332736912,1721494267216,-157.439852,0.0003562,7]
[332736913,1721494267226,-157.439852,0.0003562,7]
[332736914,1721494267236,-157.439852,0.0003562,7]
[332736915,1721494267245,-157.439852,0.0003562,7]
[332736916,1721494267257,-157.439852,0.0003562,7]
[332736917,1721494267267,-157.439852,0.0003562,7]
[332736918,1721494267279,-157.93,0.0003562,7]
[332736919,1721494267288,-503.88252638,0.0003562,7]
[332736920,1721494267297,-503.88252638,0.0003562,7]
[332736921,1721494267308,-503.88252638,0.0003562,7]
[332736922,1721494267317,-503.88252638,0.0003562,7]
[332736923,1721494267327,-503.88252638,0.0003562,7]
[332736924,1721494267336,-503.88252638,0.0003562,7]
[332736925,1721494267346,-503.88252638,0.0003562,7]
[332736926,1721494267356,-503.88252638,0.0003562,7]
[332736927,1721494267365,-503.88252638,0.0003562,7]
[332736928,1721494267374,-503.88252638,0.0003562,7]
[332736929,1721494267383,-503.88252638,0.0003562,7]
[332736930,1721494267393,-503.88252638,0.0003562,7]
[332736931,1721494267403,-503.88252638,0.0003562,7]
[332736932,1721494267412,-503.88252638,0.0003562,7]
[332736933,1721494267421,-503.88252638,0.0003562,7]
[332736934,1721494267431,-503.88252638,0.0003562,7]
[332736935,1721494267441,-157.25940367,0.0003562,7]
[332736936,1721494267450,-157.25940367,0.0003562,7]
[332736937,1721494267460,-157.25940367,0.0003562,7]
[332736938,1721494267470,-157.25940367,0.0003562,7]
[332736939,1721494267480,-157.25940367,0.0003562,7]
[332736940,1721494267490,-157.25940367,0.0003562,7]
[332736941,1721494267499,-157.25940367,0.0003562,7]
[332736942,1721494267512,-157.25940367,0.0003562,7]
[332736943,1721494267521,-157.25940367,0.0003562,7]
[332736944,1721494267531,-157.25940367,0.0003562,7]
[332736945,1721494267540,-157.25940367,0.0003562,7]
[332736946,1721494267550,-157.75,0.0003562,7]
[332736947,1721494267559,-377.49756881,0.0003562,7]
[332736948,1721494267568,-377.49756881,0.0003562,7]
[332736949,1721494267578,-377.49756881,0.0003562,7]
[332736950,1721494267587,-377.49756881,0.0003562,7]
[332736951,1721494267596,-377.49756881,0.0003562,7]
[332736952,1721494267606,-377.49756881,0.0003562,7]
[332736953,1721494267616,-377.49756881,0.0003562,7]
[332736954,1721494267625,-377.49756881,0.0003562,7]
[332736955,1721494267635,-377.49756881,0.0003562,7]
[332736956,1721494267644,-377.49756881,0.0003562,7]
[332736957,1721494267654,-377.49756881,0.0003562,7]
[332736958,1721494267663,-377.49756881,0.0003562,7]
[332736959,1721494267672,-377.49756881,0.0003562,7]
[332736960,1721494267682,-377.49756881,0.0003562,7]
[332736961,1721494267692,-377.49756881,0.0003562,7]
[332736962,1721494267701,-377.49756881,0.0003562,7]
[332736963,1721494267711,-503.79,0.00035642,2]
[332736964,1721494267722,-150.0,0.0003566,120]
[332736965,1721494267731,-228.42577228,0.0003569,2]
[332736966,1721494267741,-151.5448152,0.00035697,2]
[332736967,1721494267751,-301.18,0.000357,2]
[332736968,1721494267762,-493.24333127,0.00035703,7]
[332736969,1721494267772,-503.88252638,0.00035703,7]
[332736970,1721494267782,-377.49756881,0.00035703,7]
[332736971,1721494267792,-954.82,0.00035708,30]
[332736972,1721494267802,-954.82,0.00035708,30]
[332736973,1721494267812,-729.12,0.00035753,14]
[332736974,1721494267821,-1341.92,0.00035753,14]
[332736975,1721494267831,-152.75641938,0.00035756,7]
[332736976,1721494267841,-300.0,0.00035782,2]
[332736977,1721494267850,-1055.77,0.00035782,2]
[332736978,1721494267860,-173.0,0.00035801,2]
[332736979,1721494267869,-417.0,0.00035801,2]
[332736980,1721494267879,-1002.0,0.0003581,2]
[332736981,1721494267888,-500.0,0.0003589,14]
[332736982,1721494267897,-500.0,0.0003589,14]
[332736983,1721494267907,-500.0,0.0003589,14]
[332736984,1721494267916,-500.0,0.0003589,14]
[332736985,1721494267927,-500.0,0.0003589,14]
[332736986,1721494267936,-500.0,0.0003589,14]
[332736987,1721494267946,-500.0,0.0003589,14]
[332736988,1721494267957,-500.0,0.0003589,14]
[332736989,1721494267967,-500.0,0.0003589,14]
[332736990,1721494267976,-500.0,0.0003589,14]
[332736991,1721494267985,-500.0,0.0003589,14]
[332736992,1721494267995,-500.0,0.0003589,14]
[332736993,1721494268006,-500.0,0.0003589,14]
[332736994,1721494268015,-500.0,0.0003589,14]
[332736995,1721494268024,-729.12,0.0003589,14]
[332736996,1721494268034,-1341.92,0.0003589,14]
[332736997,1721494268045,-500.0,0.0003589,14]
[332736998,1721494268055,-200.51185067,0.00035907,8]
[332736999,1721494268065,-200.51185057,0.00035907,8]
[332737000,1721494268074,-200.51185057,0.00035907,8]
[332737001,1721494268084,-200.51185057,0.00035907,8]
[332737002,1721494268094,-200.51185057,0.00035907,8]
[332737003,1721494268103,-200.51185057,0.00035907,8]
[332737004,1721494268113,-200.51185057,0.00035907,8]
[332737005,1721494268122,-200.51185057,0.00035907,8]
[332737006,1721494268131,-200.51185057,0.00035907,8]
[332737007,1721494268141,-200.51185057,0.00035907,8]
[332737008,1721494268150,-200.51185057,0.00035907,8]
[332737009,1721494268160,-200.51185057,0.00035907,8]
[332737010,1721494268170,-928.0,0.00035918,20]
[332737011,1721494268179,-794.264678,0.00035918,20]
[332737012,1721494268190,-151.5448152,0.00035972,2]
[332737013,1721494268199,-954.82,0.00035981,30]
[332737014,1721494268209,-954.82,0.00035981,30]
[332737015,1721494268219,-410.0,0.00035986,90]
[332737016,1721494268228,-20000.0,0.00036,5]
[332737017,1721494268238,-1500.0,0.00036,120]
[332737018,1721494268247,-150.0,0.00036,2]
[332737019,1721494268258,-479.46688634,0.00036,120]
[332737020,1721494268268,-2000.0,0.00036,30]
[332737021,1721494268277,-2000.0,0.00036,120]
[332737022,1721494268287,-218.0,0.00036,25]
[332737023,1721494268297,-729.17987418,0.00036027,14]
[332737024,1721494268307,-1342.15641771,0.00036027,14]
[332737025,1721494268317,-493.24333127,0.00036071,7]
[332737026,1721494268326,-503.88252638,0.00036071,7]
[332737027,1721494268336,-377.49756881,0.00036071,7]
[332737028,1721494268345,-8012.92,0.00036138,6]
[332737029,1721494268355,-8881.92,0.00036138,6]
[332737030,1721494268365,-51538.17,0.00036138,6]
[332737031,1721494268374,-500.0,0.00036164,14]
[332737032,1721494268384,-835.88,0.00036164,2]
[332737033,1721494268394,-2000.0,0.000362,17]
[332737034,1721494268404,-500.0,0.00036215,14]
[332737035,1721494268413,-500.0,0.00036215,14]
[332737036,1721494268423,-500.0,0.00036215,14]
[332737037,1721494268432,-500.0,0.00036215,14]
[332737038,1721494268442,-500.0,0.00036215,14]
[332737039,1721494268452,-500.0,0.00036215,14]
[332737040,1721494268461,-200.50123568,0.00036215,14]
[332737041,1721494268471,-547.64168304,0.00036223,2]
[332737042,1721494268481,-500.0,0.00036224,14]
[332737043,1721494268490,-500.0,0.00036224,14]
[332737044,1721494268500,-500.0,0.00036224,14]
[332737045,1721494268511,-500.0,0.00036224,14]
[332737046,1721494268520,-500.0,0.00036224,14]
[332737047,1721494268530,-500.0,0.00036224,14]
[332737048,1721494268539,-500.0,0.00036224,14]
[332737049,1721494268549,-500.0,0.00036224,14]
[332737050,1721494268558,-500.0,0.00036224,14]
[332737051,1721494268568,-629.86974645,0.00036224,14]
[332737052,1721494268578,-151.5448152,0.00036247,2]
[332737053,1721494268588,-954.82,0.00036254,30]
[332737054,1721494268598,-954.82,0.00036254,30]
[332737055,1721494268607,-928.0,0.00036277,20]
[332737056,1721494268617,-152.75641938,0.00036282,7]
[332737057,1721494268626,-500.0,0.00036438,14]
[332737058,1721494268635,-493.24333127,0.00036439,7]
[332737059,1721494268644,-503.88252638,0.00036439,7]
[332737060,1721494268654,-377.49756881,0.00036439,7]
[332737061,1721494268663,-2000.0,0.000365,17]
[332737062,1721494268672,-2000.0,0.000365,17]
[332737063,1721494268681,-218.0,0.000365,25]
[332737064,1721494268691,-151.5448152,0.00036522,2]
[332737065,1721494268701,-954.82,0.00036527,30]
[332737066,1721494268710,-954.82,0.00036527,30]
[332737067,1721494268718,-355.62,0.00036603,2]
[332737068,1721494268727,-355.62,0.00036603,2]
[332737069,1721494268737,-355.62,0.00036603,2]
[332737070,1721494268745,-155.0,0.00036623,2]
[332737071,1721494268755,-928.0,0.00036636,20]
[332737072,1721494268764,-15938.17975292,0.00036665,7]
[332737073,1721494268773,-500.0,0.00036712,14]
[332737074,1721494268783,-150.0,0.00036718,120]
[332737075,1721494268792,-151.5448152,0.00036797,2]
[332737076,1721494268802,-200.51185057,0.00036807,9]
[332737077,1721494268811,-153.25,0.00036807,7]
[332737078,1721494268823,-493.74,0.00036807,7]
[332737079,1721494268836,-504.38,0.00036807,7]
[332737080,1721494268846,-377.99,0.00036807,7]
[332737081,1721494268857,-2931.393166,0.00036872,2]
[332737082,1721494268866,-2578.5651961,0.00036872,2]
[332737083,1721494268876,-2225.7372262,0.00036872,2]
[332737084,1721494268886,-1872.9092563,0.00036872,2]
[332737085,1721494268895,-80095.7032,0.00036872,2]
[332737086,1721494268905,-70455.2343999,0.00036872,2]
[332737087,1721494268915,-60814.7655999,0.00036872,2]
[332737088,1721494268925,-51174.2967999,0.00036872,2]
[332737089,1721494268935,-40809.581006,0.00036872,2]
[332737090,1721494268944,-35897.6634285,0.00036872,2]
[332737091,1721494268954,-30985.745851,0.00036872,2]
[332737092,1721494268965,-26073.8282735,0.00036872,2]
[332737093,1721494268976,-3610.4551716,0.00036882,2]
[332737094,1721494268986,-3175.8940273,0.00036882,2]
[332737095,1721494268995,-2741.332883,0.00036882,2]
[332737096,1721494269005,-2306.7717387,0.00036882,2]
[332737097,1721494269016,-9611.4265603,0.00036882,2]
[332737098,1721494269026,-8454.577264,0.00036882,2]
[332737099,1721494269035,-7297.7279678,0.00036882,2]
[332737100,1721494269045,-6140.8786716,0.00036882,2]
[332737101,1721494269055,-563.2940824,0.00036882,2]
[332737102,1721494269065,-495.494952,0.00036882,2]
[332737103,1721494269074,-427.6958215,0.00036882,2]
[332737104,1721494269084,-359.8966911,0.00036882,2]
[332737105,1721494269094,-476.0,0.0003689,2]
[332737106,1721494269103,-728.46511859,0.00036897,2]
[332737107,1721494269113,-728.46511859,0.00036897,2]
[332737108,1721494269124,-25063.94600384,0.00036897,2]
[332737109,1721494269134,-25063.94600384,0.00036897,2]
[332737110,1721494269144,-25063.94600384,0.00036897,2]
[332737111,1721494269154,-25063.94600384,0.00036897,2]
[332737112,1721494269164,-514.63177978,0.00036907,7]
[332737113,1721494269174,-1786.8139088,0.00036907,7]
[332737114,1721494269184,-4719.05899825,0.00036907,2]
[332737115,1721494269193,-1080.50571692,0.00036907,7]
[332737116,1721494269203,-210.27802619,0.00036907,7]
[332737117,1721494269212,-4001.83714654,0.00036907,2]
[332737118,1721494269222,-7660.55365791,0.00036907,7]
[332737119,1721494269232,-31047.63601647,0.00036907,7]
[332737120,1721494269241,-159112.7634371,0.00036907,7]
[332737121,1721494269252,-169379.90821881,0.00036907,7]
[332737122,1721494269262,-8103.62445306,0.00036907,2]
[332737123,1721494269271,-10000.0,0.00036907,2]
[332737124,1721494269281,-10000.0,0.00036907,4]
[332737125,1721494269291,-100000.0,0.00036907,2]
[332737126,1721494269301,-266606.28238042,0.00036907,7]
[332737127,1721494269310,-2940.3420523,0.00036907,2]
[332737128,1721494269321,-6488578.43387469,0.00036907,2]
[332737129,1721494270128,-6238.45777741,0.00036907,2]
[332737130,1721494270140,-353.436607,0.00036907,2]
[332737131,1721494271395,-150.0,0.00013621,2]
[332737132,1721494271405,-150.0,0.00013621,2]
[332737133,1721494271415,-150.0,0.00013622,2]
[332737134,1721494271426,-150.0,0.00013625,2]
[332737135,1721494271436,-150.0,0.00013626,2]
[332737136,1721494271447,-150.0,0.0001363,2]
[332737137,1721494271457,-150.0,0.00013632,2]
[332737138,1721494271468,-150.0,0.00013637,2]
[332737139,1721494271478,-150.0,0.0001365,2]
[332737140,1721494271488,-150.0,0.00013668,2]
[332737141,1721494271497,-150.0,0.00013672,2]
[332737142,1721494271507,-150.0,0.00013676,2]
[332737143,1721494271517,-150.0,0.00013682,2]
[332737144,1721494271526,-150.0,0.00013687,2]
[332737145,1721494271537,-150.0,0.00013687,2]
[332737146,1721494271547,-150.0,0.00013691,2]
[332737147,1721494271556,-150.0,0.00013691,2]
[332737148,1721494271566,-150.0,0.0001371,2]
[332737149,1721494271576,-150.0,0.00013717,2]
[332737150,1721494271586,-150.0,0.00013723,2]
[332737151,1721494271596,-150.0,0.00013724,2]
[332737152,1721494271606,-150.0,0.00013735,2]
[332737153,1721494271615,-150.0,0.00013743,2]
[332737154,1721494271625,-150.0,0.00013748,2]
[332737155,1721494271635,-150.0,0.00013749,2]
[332737156,1721494271645,-150.0,0.00013754,2]
[332737157,1721494271654,-150.0,0.0001376,2]
[332737158,1721494271664,-151.177,0.00013769,2]
[332737159,1721494271674,-150.0,0.00013774,2]
[332737160,1721494271683,-150.0,0.00013777,2]
[332737161,1721494271693,-150.0,0.00013784,2]
[332737162,1721494271702,-150.0,0.00013784,2]
[332737163,1721494271712,-150.0,0.00013788,2]
[332737164,1721494271722,-150.0,0.00013803,2]
[332737165,1721494271733,-150.0,0.00013803,2]
[332737166,1721494271742,-150.0,0.00013804,2]
[332737167,1721494271752,-150.0,0.00013807,2]
[332737168,1721494271763,-150.0,0.00013809,2]
[332737169,1721494271773,-150.0,0.00013815,2]
[332737170,1721494271784,-150.0,0.00013825,2]
[332737171,1721494271794,-150.0,0.00013827,2]
[332737172,1721494271803,-150.0,0.00013834,2]
[332737173,1721494271813,-150.0,0.00013835,2]
[332737174,1721494271823,-150.0,0.00013835,2]
[332737175,1721494271833,-150.0,0.00013837,2]
[332737176,1721494271843,-150.0,0.00013844,2]
[332737177,1721494271853,-150.0,0.00013846,2]
[332737178,1721494271863,-150.0,0.00013847,2]
[332737179,1721494271873,-150.0,0.00013852,2]
[332737180,1721494271883,-150.0,0.00013856,2]
[332737181,1721494271894,-150.0,0.00013863,2]
[332737182,1721494271904,-150.0,0.00013865,2]
[332737183,1721494271914,-150.0,0.00013865,2]
[332737184,1721494271924,-150.0,0.00013868,2]
[332737185,1721494271934,-150.0,0.00013875,2]
[332737186,1721494271945,-150.0,0.00013878,2]
[332737187,1721494271954,-150.0,0.00013887,2]
[332737188,1721494271967,-150.0,0.00013893,2]
[332737189,1721494271977,-1073.0,0.00019769,2]
[332737190,1721494271987,-256.401428,0.00020822,2]
[332737191,1721494271998,-1073.0,0.00022769,2]
[332737192,1721494272009,-155.0,0.00032865,4]
[332737193,1721494272019,-2000.0,0.000356,2]
[332737194,1721494272028,-79728.847818,0.00036907,2]
[332737195,1721494272132,-150.0,0.00013632,2]
[332737196,1721494272143,-150.0,0.00013691,2]
[332737197,1721494272153,-150.0,0.00013729,2]
[332737198,1721494272163,-228.886,0.00013769,2]
[332737199,1721494272173,-150.0,0.0001379,2]
[332737200,1721494272183,-150.0,0.00013824,2]
[332737201,1721494272193,-150.0,0.00013836,2]
[332737202,1721494272202,-150.0,0.00013855,2]
[332737203,1721494272212,-150.0,0.00013886,2]
[332737204,1721494272222,-366.6,0.00026357,2]
[332737205,1721494272232,-360.6,0.00027179,2]
[332737206,1721494272242,-527.91,0.00028908,2]
[332737207,1721494272252,-3620.404,0.00036907,2]
[332737208,1721494272281,-150.0,0.00013791,2]
[332737209,1721494272291,-150.0,0.00013837,2]
[332737210,1721494272300,-146683.58626139,0.00036907,2]
[332737211,1721494272312,-43922.04241925,0.00036907,2]
[332737212,1721494272324,-34091.090114,0.00036907,2]
[332737213,1721494272335,-59873.48618138,0.00036907,2]
[332737214,1721494272348,-269.7700001,0.00036907,2]
[332737215,1721494273202,-150.0,0.00013667,2]
[332737216,1721494273212,-150.0,0.00013686,2]
[332737217,1721494273221,-150.0,0.00013731,2]
[332737218,1721494273230,-150.0,0.0001376,2]
[332737219,1721494273240,-150.0,0.00013801,2]
[332737220,1721494273249,-150.0,0.00013832,2]
[332737221,1721494273259,-150.0,0.00013843,2]
[332737222,1721494273268,-150.0,0.0001388,2]
[332737223,1721494273277,-478.83656825,0.00014261,2]
[332737224,1721494273289,-844.88945117,0.00014261,2]
[332737225,1721494273298,-281.33108426,0.00014451,2]
[332737226,1721494273307,-150.0,0.00014675,2]
[332737227,1721494273317,-150.0,0.00014742,2]
[332737228,1721494273327,-150.0,0.00014747,2]
[332737229,1721494273336,-150.0,0.00014754,2]
[332737230,1721494273346,-150.0,0.00014758,2]
[332737231,1721494273356,-150.0,0.00014758,2]
[332737232,1721494273366,-150.0,0.00014769,2]
[332737233,1721494273376,-150.0,0.00014806,2]
[332737234,1721494273385,-150.0,0.00014807,2]
[332737235,1721494273395,-150.0,0.00014818,2]
[332737236,1721494273406,-150.0,0.00014822,2]
[332737237,1721494273415,-150.0,0.00014997,2]
[332737238,1721494273425,-150.0,0.0001507,2]
[332737239,1721494273435,-200.0,0.00015756,2]
[332737240,1721494273445,-150.0,0.00016173,2]
[332737241,1721494273455,-150.0,0.00016205,2]
[332737242,1721494273465,-150.0,0.00016247,2]
[332737243,1721494273475,-150.0,0.00016299,2]
[332737244,1721494273485,-150.0,0.00016368,2]
[332737245,1721494273495,-150.0,0.00016397,2]
[332737246,1721494273505,-150.0,0.00016577,2]
[332737247,1721494273517,-150.0,0.00016655,2]
[332737248,1721494273527,-150.0,0.00016711,2]
[332737249,1721494273537,-150.0,0.00016729,2]
[332737250,1721494273551,-150.0,0.00016769,2]
[332737251,1721494273561,-150.0,0.00016769,2]
[332737252,1721494273572,-400.0,0.00017125,2]
[332737253,1721494273582,-150.0,0.00017595,2]
[332737254,1721494273592,-150.0,0.00017696,2]
[332737255,1721494273602,-467.46613774,0.00018903,2]
[332737256,1721494273611,-150.0,0.00019769,2]
[332737257,1721494273621,-150.0,0.00019769,2]
[332737258,1721494273631,-530.85417647,0.00031855,2]
[332737259,1721494273641,-45729.58723053,0.00036907,2]
[332737260,1721494273653,-1882.0,0.00036907,2]
[332737261,1721494273664,-587.2050527,0.00036907,2]
[332737262,1721494273676,-1502.556,0.00036907,2]
[332737263,1721494273704,-9545.2708306,0.00036907,2]
[332737264,1721494273715,-261.33245334,0.00036907,2]
[332737265,1721494273726,-3771.23305776,0.00036907,2]
[332737266,1721494273737,-5318.77659499,0.00036907,2]
[332737267,1721494273772,-1003.25812,0.00036907,2]
[332737268,1721494273784,-418.02742555,0.00036907,2]
[332737269,1721494273871,-1737.10385016,0.00036907,2]
[332737270,1721494273884,-874.25,0.00036907,2]
[332737271,1721494273896,-376.30297652,0.00036907,2]
[332737272,1721494273911,-2067.42598563,0.00036907,2]
[332737273,1721494273923,-299.8486275,0.00036907,2]
[332737314,1721494665565,19086.28575192,0.00011959,2]
[332737321,1721494704720,20485.66405649,0.00011959,2]
[332737323,1721494786027,155.12926624,0.00011959,2]
[332737325,1721495059493,295.82708521,0.00011899,2]
[332737327,1721495205579,686.88573741,0.00011959,2]
[332737328,1721495332095,539.02654818,0.00011959,2]
[332737329,1721495351050,308.80447268,0.00011959,2]
[332737330,1721495398373,363.65926823,0.00011959,2]
[332737331,1721495422606,227.4651143,0.00011959,2]
[332737332,1721495425651,167.90303636,0.00011959,2]
[332737339,1721495432328,-567.14,0.00012298,2]
[332737340,1721495432339,-79.248186,0.00012298,2]
[332737341,1721495432349,-174.85149445,0.0001236,2]
[332737342,1721495432358,-203.08849895,0.00012391,2]
[332737343,1721495432368,-1687.34794139,0.00013017,2]
[332737344,1721495432377,-847.21248447,0.000138,2]
[332737345,1721495432386,-751.19,0.00013973,2]
[332737346,1721495432395,-151.83,0.00013973,2]
[332737347,1721495432405,-155.0,0.00014086,2]
[332737348,1721495432414,-499.99,0.00014223,2]
[332737349,1721495432425,-572.40478118,0.00014261,2]
[332737350,1721495432435,-173.46,0.00014332,2]
[332737351,1721495432444,-308.80447268,0.00014496,2]
[332737352,1721495432454,-155.0,0.00015,2]
[332737353,1721495432464,-150.0,0.00015,2]
[332737354,1721495432475,-238.41,0.00016071,2]
[332737355,1721495432492,-1323.72601942,0.00016952,2]
[332737356,1721495432502,-200.0,0.00017,2]
[332737357,1721495432511,-640.16604939,0.00017444,2]
[332737358,1721495432523,-359.83395061,0.00017444,2]
[332737359,1721495432533,-143.07327834,0.00017455,2]
[332737360,1721495432548,-159.78672166,0.00017455,2]
[332737361,1721495432557,-252.54,0.00017516,2]
[332737362,1721495432568,-9149.18,0.00017581,2]
[332737363,1721495432578,-154.68,0.00017669,2]
[332737364,1721495432587,-200.0,0.00017817,2]
[332737365,1721495432596,-2086.77,0.00017842,2]
[332737366,1721495432606,-167.0,0.00017981,2]
[332737367,1721495432615,-340.33985388,0.00018,4]
[332737368,1721495432625,-171.684,0.00018308,2]
[332737370,1721495432634,-238.41,0.00018335,2]
[332737372,1721495432644,-167.0,0.00018575,2]
[332737374,1721495432653,-300.0,0.00018736,2]
[332737375,1721495432662,-155.0,0.00019,2]
[332737376,1721495432672,-250.0,0.00019,2]
[332737377,1721495432682,-167.0,0.00019169,2]
[332737378,1721495432691,-171.684,0.00019269,2]
[332737379,1721495432701,-1000.0,0.00019625,2]
[332737380,1721495432709,-167.0,0.00019762,2]
[332737381,1721495432719,-200.0,0.000199,2]
[332737382,1721495432728,-258.21872534,0.0002,2]
[332737383,1721495432737,-1033.68189473,0.0002,2]
[332737384,1721495432747,-188.5113815,0.0002,2]
[332737385,1721495432756,-300.0,0.00020105,2]
[332737386,1721495432766,-171.684,0.00020332,2]
[332737387,1721495432776,-167.0,0.00020356,2]
[332737388,1721495432786,-751.19,0.00020447,2]
[332737389,1721495432795,-172.32,0.00020548,2]
[332737390,1721495432805,-238.41,0.00020598,2]
[332737391,1721495432814,-1060.0,0.000206,2]
[332737392,1721495432824,-2013.0,0.000206,2]
[332737393,1721495432833,-1988.78128439,0.000209,2]
[332737394,1721495432845,-2960.35483927,0.000209,2]
[332737395,1721495432856,-684.71908266,0.000209,2]
[332737396,1721495432867,-993.6047381,0.000209,2]
[332737397,1721495432886,-857.25,0.000209,2]
[332737398,1721495432897,-5955.02005558,0.000209,2]
[332737399,1721495432907,-719.3455,0.000209,2]
[332737400,1721495432917,-167.0,0.00020949,2]
[332737401,1721495432927,-9534.74,0.00020951,2]
[332737402,1721495432936,-1554.83080039,0.0002099,4]
[332737403,1721495432946,-12449.52871443,0.00021,2]
[332737404,1721495432958,-35979.94301373,0.00021,2]
[332737405,1721495432978,-541.0092199,0.00021,2]
[332737406,1721495432990,-2538.47731458,0.00021,2]
[332737407,1721495433013,-285.56,0.00021,2]
[332737408,1721495433025,-438.97877864,0.00021,2]
[332737433,1721495438448,-363.65926823,0.00014496,2]
[332737434,1721495438458,-10635.62883177,0.00021,2]
[332737435,1721495438469,-4999.45156282,0.00021,2]
[332737436,1721495438514,-1323.72601942,0.00016949,2]
[332737437,1721495438523,-2770.01066906,0.00021,2]
[332737438,1721495438535,-10978.45424228,0.00021,2]
[332737439,1721495438552,-12133.84786113,0.00021,2]
[332737440,1721495438580,-1520.39891193,0.00021,2]
[332737633,1721495440452,-174.85149445,0.0001236,2]
[332737635,1721495440463,-51238.03561278,0.00021,2]
[332737641,1721495440511,-6946.52823739,0.00021,2]
[332737653,1721495440629,-331.98795902,0.00021,2]
[332737655,1721495440640,-526.62,0.00021,2]